[Event "Titled Tuesday Blitz August 08 Early 2023"]
[White "Hoang, Thi Bao Tram"]
[Black "arenal72"]
[WhiteFideId "12401102"]
[WhiteElo "2681"]
[BlackElo "2491"]
[Result "0-1"]
[Round "7"]
[TimeControl "180+1"]
[Date "2023.08.08"]
[WhiteClock "0:00:15"]
[BlackClock "0:00:23"]
[Board "63"]

1. Nf3 {[%clk 0:02:47]}  Nc6 {[%clk 0:02:56]} 2. g3 {[%clk 0:02:47]}  e5 {[%clk 0:02:55]} 3. d3 {[%clk 0:02:47]}  d5 {[%clk 0:02:55]} 4. Bg2 {[%clk 0:02:47]}  Nf6 {[%clk 0:02:50]} 5. O-O {[%clk 0:02:47]}  Be7 {[%clk 0:02:50]} 6. c4 {[%clk 0:02:47]}  O-O {[%clk 0:02:46]} 7. cxd5 {[%clk 0:02:44]}  Nxd5 {[%clk 0:02:47]} 8. Nc3 {[%clk 0:02:45]}  Be6 {[%clk 0:02:45]} 9. a3 {[%clk 0:02:41]}  h6 {[%clk 0:02:35]} 10. Qc2 {[%clk 0:02:35]}  a5 {[%clk 0:02:26]} 11. Bd2 {[%clk 0:02:33]}  f6 {[%clk 0:02:18]} 12. Ne4 {[%clk 0:02:32]}  a4 {[%clk 0:02:06]} 13. Rac1 {[%clk 0:02:29]}  Nb6 {[%clk 0:02:01]} 14. Nh4 {[%clk 0:02:19]}  Bb3 {[%clk 0:01:59]} 15. Qb1 {[%clk 0:02:15]}  Nd4 {[%clk 0:01:58]} 16. Rfe1 {[%clk 0:02:14]}  f5 {[%clk 0:01:55]} 17. Nc5 {[%clk 0:02:10]}  Bxh4 {[%clk 0:01:52]} 18. gxh4 {[%clk 0:02:10]}  Qxh4 {[%clk 0:01:49]} 19. e3 {[%clk 0:02:07]}  Ne6 {[%clk 0:01:47]} 20. Nxe6 {[%clk 0:01:48]}  Bxe6 {[%clk 0:01:46]} 21. Rxc7 {[%clk 0:01:48]}  Rac8 {[%clk 0:01:45]} 22. Rec1 {[%clk 0:01:47]}  Rxc7 {[%clk 0:01:40]} 23. Rxc7 {[%clk 0:01:46]}  f4 {[%clk 0:01:40]} 24. exf4 {[%clk 0:01:43]}  exf4 {[%clk 0:01:41]} 25. Bc3 {[%clk 0:01:43]}  Rf7 {[%clk 0:01:34]} 26. Qe1 {[%clk 0:01:32]}  Rxc7 {[%clk 0:01:20]} 27. Qxe6+ {[%clk 0:01:31]}  Rf7 {[%clk 0:01:20]} 28. Qe8+ {[%clk 0:00:54]}  Rf8 {[%clk 0:01:18]} 29. Qe6+ {[%clk 0:00:54]}  Rf7 {[%clk 0:01:19]} 30. Qe8+ {[%clk 0:00:49]}  Rf8 {[%clk 0:01:18]} 31. Qg6 {[%clk 0:00:49]}  Qg5 {[%clk 0:01:13]} 32. Qxg5 {[%clk 0:00:48]}  hxg5 {[%clk 0:01:14]} 33. Bxb7 {[%clk 0:00:48]}  f3 {[%clk 0:01:00]} 34. h3 {[%clk 0:00:48]}  Nd7 {[%clk 0:00:54]} 35. Kh2 {[%clk 0:00:46]}  Nc5 {[%clk 0:00:54]} 36. Bd5+ {[%clk 0:00:46]}  Kh7 {[%clk 0:00:54]} 37. Kg3 {[%clk 0:00:43]}  Kh6 {[%clk 0:00:51]} 38. d4 {[%clk 0:00:36]}  Nd3 {[%clk 0:00:47]} 39. Bxf3 {[%clk 0:00:35]}  Rb8 {[%clk 0:00:46]} 40. d5 {[%clk 0:00:33]}  Nxb2 {[%clk 0:00:46]} 41. Be2 {[%clk 0:00:25]}  Rb3 {[%clk 0:00:43]} 42. d6 {[%clk 0:00:17]}  Rxc3+ {[%clk 0:00:43]} 43. Kg4 {[%clk 0:00:18]}  Nc4 {[%clk 0:00:30]} 44. Bxc4 {[%clk 0:00:17]}  Rxc4+ {[%clk 0:00:30]} 45. Kf5 {[%clk 0:00:18]}  Rf4+ {[%clk 0:00:22]} 46. Ke6 {[%clk 0:00:18]}  Rxf2 {[%clk 0:00:23]} 47. d7 {[%clk 0:00:15]}  Rd2 {[%clk 0:00:23]} 0-1


[Site "https://www.chess.com"]

[Event "Titled Tuesday Blitz August 08 Early 2023"]
[White "Devaev, Alexander"]
[Black "Nava, Roderick"]
[WhiteFideId "4169395"]
[BlackFideId "5201730"]
[WhiteElo "2464"]
[BlackElo "2673"]
[Result "1-0"]
[Round "7"]
[TimeControl "180+1"]
[Date "2023.08.08"]
[WhiteClock "0:00:11"]
[BlackClock "0:00:04"]
[Board "64"]

1. Nf3 {[%clk 0:02:58]}  c5 {[%clk 0:03:00]} 2. c4 {[%clk 0:02:57]}  g6 {[%clk 0:03:01]} 3. Nc3 {[%clk 0:02:56]}  Bg7 {[%clk 0:03:02]} 4. e3 {[%clk 0:02:57]}  Nf6 {[%clk 0:03:02]} 5. Be2 {[%clk 0:02:55]}  O-O {[%clk 0:03:03]} 6. O-O {[%clk 0:02:56]}  d5 {[%clk 0:03:01]} 7. cxd5 {[%clk 0:02:57]}  Nxd5 {[%clk 0:03:01]} 8. a3 {[%clk 0:02:56]}  Nc6 {[%clk 0:03:01]} 9. Ne4 {[%clk 0:02:56]}  b6 {[%clk 0:03:01]} 10. d3 {[%clk 0:02:56]}  Bb7 {[%clk 0:02:59]} 11. Qc2 {[%clk 0:02:56]}  Rc8 {[%clk 0:02:57]} 12. Re1 {[%clk 0:02:56]}  Qd7 {[%clk 0:02:56]} 13. Rb1 {[%clk 0:02:55]}  Rfd8 {[%clk 0:02:55]} 14. Bf1 {[%clk 0:02:55]}  h6 {[%clk 0:02:55]} 15. h3 {[%clk 0:02:54]}  f5 {[%clk 0:02:39]} 16. Ng3 {[%clk 0:02:52]}  e5 {[%clk 0:02:37]} 17. Nd2 {[%clk 0:02:52]}  Qf7 {[%clk 0:02:19]} 18. b3 {[%clk 0:02:48]}  Nd4 {[%clk 0:02:12]} 19. exd4 {[%clk 0:02:38]}  cxd4 {[%clk 0:01:42]} 20. Qb2 {[%clk 0:02:25]}  Nc3 {[%clk 0:01:34]} 21. Qa1 {[%clk 0:01:37]}  b5 {[%clk 0:01:06]} 22. Bb2 {[%clk 0:01:35]}  h5 {[%clk 0:00:56]} 23. Rbc1 {[%clk 0:01:23]}  h4 {[%clk 0:00:53]} 24. Ne2 {[%clk 0:01:09]}  Bh6 {[%clk 0:00:46]} 25. Rxc3 {[%clk 0:00:44]}  dxc3 {[%clk 0:00:38]} 26. Bxc3 {[%clk 0:00:45]}  Rxd3 {[%clk 0:00:37]} 27. Nf3 {[%clk 0:00:35]}  Bxf3 {[%clk 0:00:25]} 28. gxf3 {[%clk 0:00:35]}  Rdxc3 {[%clk 0:00:21]} 29. Nxc3 {[%clk 0:00:31]}  Bd2 {[%clk 0:00:22]} 30. Nxb5 {[%clk 0:00:26]}  Bxe1 {[%clk 0:00:16]} 31. Qxe1 {[%clk 0:00:26]}  Qxb3 {[%clk 0:00:15]} 32. Qxe5 {[%clk 0:00:24]}  Rf8 {[%clk 0:00:15]} 33. Nd6 {[%clk 0:00:21]}  Qd1 {[%clk 0:00:11]} 34. Qe6+ {[%clk 0:00:20]}  Kg7 {[%clk 0:00:10]} 35. Qe7+ {[%clk 0:00:20]}  Kg8 {[%clk 0:00:10]} 36. Qe6+ {[%clk 0:00:19]}  Kg7 {[%clk 0:00:10]} 37. Qe5+ {[%clk 0:00:19]}  Kg8 {[%clk 0:00:10]} 38. Kg2 {[%clk 0:00:14]}  Rd8 {[%clk 0:00:05]} 39. Bc4+ {[%clk 0:00:14]}  Kf8 {[%clk 0:00:04]} 40. Qf6# {[%clk 0:00:11]} 1-0


[Site "https://www.chess.com"]

[Event "Titled Tuesday Blitz August 08 Early 2023"]
[White "Fus, Jakub"]
[Black "Jumanov, Elbek"]
[WhiteFideId "1193023"]
[BlackFideId "14202905"]
[WhiteElo "2672"]
[BlackElo "2443"]
[Result "1-0"]
[Round "7"]
[TimeControl "180+1"]
[Date "2023.08.08"]
[WhiteClock "0:00:37"]
[BlackClock "0:00:00"]
[Board "65"]

1. d4 {[%clk 0:03:00]}  Nf6 {[%clk 0:02:57]} 2. c4 {[%clk 0:03:01]}  c5 {[%clk 0:02:56]} 3. e3 {[%clk 0:03:00]}  g6 {[%clk 0:02:52]} 4. Nc3 {[%clk 0:02:57]}  Bg7 {[%clk 0:02:52]} 5. Nf3 {[%clk 0:02:57]}  O-O {[%clk 0:02:53]} 6. dxc5 {[%clk 0:02:42]}  Na6 {[%clk 0:02:51]} 7. Be2 {[%clk 0:02:41]}  Nxc5 {[%clk 0:02:51]} 8. O-O {[%clk 0:02:42]}  d6 {[%clk 0:02:49]} 9. Nd4 {[%clk 0:02:36]}  Nfe4 {[%clk 0:02:31]} 10. Nxe4 {[%clk 0:02:35]}  Nxe4 {[%clk 0:02:30]} 11. Qc2 {[%clk 0:02:36]}  Nc5 {[%clk 0:02:27]} 12. b3 {[%clk 0:02:29]}  e5 {[%clk 0:02:10]} 13. Nb5 {[%clk 0:02:26]}  Bf5 {[%clk 0:01:54]} 14. Qd1 {[%clk 0:02:25]}  e4 {[%clk 0:01:24]} 15. Rb1 {[%clk 0:02:05]}  a6 {[%clk 0:01:20]} 16. Nxd6 {[%clk 0:01:53]}  Qh4 {[%clk 0:01:12]} 17. Ba3 {[%clk 0:01:37]}  b6 {[%clk 0:00:41]} 18. Qd5 {[%clk 0:01:17]}  Be6 {[%clk 0:00:36]} 19. Qc6 {[%clk 0:01:09]}  Be5 {[%clk 0:00:17]} 20. g3 {[%clk 0:01:06]}  Qf6 {[%clk 0:00:11]} 21. Nxe4 {[%clk 0:00:55]}  Nxe4 {[%clk 0:00:10]} 22. Qxe4 {[%clk 0:00:56]}  Rae8 {[%clk 0:00:05]} 23. Bxf8 {[%clk 0:00:53]}  Kxf8 {[%clk 0:00:00]} 24. Bg4 {[%clk 0:00:37]} 1-0


[Site "https://www.chess.com"]

[Event "Titled Tuesday Blitz August 08 Early 2023"]
[White "Wong, Zhenyong Jayden"]
[Black "Rychagov, Andrey"]
[WhiteFideId "5821975"]
[BlackFideId "4119932"]
[WhiteElo "2441"]
[BlackElo "2671"]
[Result "1-0"]
[Round "7"]
[TimeControl "180+1"]
[Date "2023.08.08"]
[WhiteClock "0:01:38"]
[BlackClock "0:00:55"]
[Board "66"]

1. g3 {[%clk 0:02:59]}  d5 {[%clk 0:02:59]} 2. Nf3 {[%clk 0:02:59]}  c6 {[%clk 0:02:59]} 3. Bg2 {[%clk 0:02:59]}  Bg4 {[%clk 0:02:59]} 4. O-O {[%clk 0:02:59]}  Nd7 {[%clk 0:02:59]} 5. d3 {[%clk 0:02:55]}  Ngf6 {[%clk 0:02:58]} 6. h3 {[%clk 0:02:55]}  Bh5 {[%clk 0:02:57]} 7. c4 {[%clk 0:02:55]}  e6 {[%clk 0:02:56]} 8. b3 {[%clk 0:02:55]}  Be7 {[%clk 0:02:54]} 9. Bb2 {[%clk 0:02:56]}  O-O {[%clk 0:02:54]} 10. Nbd2 {[%clk 0:02:56]}  a5 {[%clk 0:02:54]} 11. a3 {[%clk 0:02:56]}  b5 {[%clk 0:02:52]} 12. Qc2 {[%clk 0:02:45]}  Qb8 {[%clk 0:02:50]} 13. Nd4 {[%clk 0:02:37]}  Rc8 {[%clk 0:02:43]} 14. Rfc1 {[%clk 0:02:32]}  Bg6 {[%clk 0:02:38]} 15. cxb5 {[%clk 0:02:27]}  c5 {[%clk 0:01:53]} 16. Nc6 {[%clk 0:02:26]}  Qd6 {[%clk 0:01:52]} 17. e4 {[%clk 0:02:20]}  dxe4 {[%clk 0:01:48]} 18. dxe4 {[%clk 0:02:14]}  Bf8 {[%clk 0:01:48]} 19. Nc4 {[%clk 0:02:05]}  Qc7 {[%clk 0:01:44]} 20. Qe2 {[%clk 0:02:02]}  Nb6 {[%clk 0:01:37]} 21. Be5 {[%clk 0:01:57]}  Qb7 {[%clk 0:01:31]} 22. N6xa5 {[%clk 0:01:55]}  Qa7 {[%clk 0:01:08]} 23. Nc6 {[%clk 0:01:55]}  Qb7 {[%clk 0:01:08]} 24. Nd6 {[%clk 0:01:40]}  Bxd6 {[%clk 0:01:06]} 25. Bxd6 {[%clk 0:01:40]}  Nbd7 {[%clk 0:00:55]} 26. Ne7+ {[%clk 0:01:38]} 1-0


[Site "https://www.chess.com"]

[Event "Titled Tuesday Blitz August 08 Early 2023"]
[White "Fominykh, Maria"]
[Black "Keleberda, Tymur"]
[WhiteFideId "4142411"]
[BlackFideId "14174294"]
[WhiteElo "2300"]
[BlackElo "2555"]
[Result "0-1"]
[Round "7"]
[TimeControl "180+1"]
[Date "2023.08.08"]
[WhiteClock "0:00:00"]
[BlackClock "0:01:20"]
[Board "68"]

1. d4 {[%clk 0:03:00]}  Nf6 {[%clk 0:02:58]} 2. c4 {[%clk 0:03:00]}  e6 {[%clk 0:02:58]} 3. g3 {[%clk 0:02:59]}  d5 {[%clk 0:02:58]} 4. Nf3 {[%clk 0:02:57]}  dxc4 {[%clk 0:02:58]} 5. Qa4+ {[%clk 0:02:55]}  Nbd7 {[%clk 0:02:55]} 6. Bg2 {[%clk 0:02:54]}  a6 {[%clk 0:02:55]} 7. Qxc4 {[%clk 0:02:54]}  b5 {[%clk 0:02:55]} 8. Qd3 {[%clk 0:02:54]}  Bb7 {[%clk 0:02:55]} 9. O-O {[%clk 0:02:53]}  c5 {[%clk 0:02:56]} 10. Nc3 {[%clk 0:02:44]}  cxd4 {[%clk 0:02:50]} 11. Qxd4 {[%clk 0:02:36]}  Bc5 {[%clk 0:02:50]} 12. Qh4 {[%clk 0:02:33]}  O-O {[%clk 0:02:49]} 13. b3 {[%clk 0:01:56]}  h6 {[%clk 0:02:41]} 14. Bb2 {[%clk 0:01:52]}  Qe7 {[%clk 0:02:41]} 15. Rac1 {[%clk 0:01:38]}  Rfd8 {[%clk 0:02:40]} 16. Rfd1 {[%clk 0:01:18]}  Rac8 {[%clk 0:02:38]} 17. e3 {[%clk 0:01:03]}  Nb6 {[%clk 0:02:21]} 18. Ne2 {[%clk 0:00:31]}  Rxd1+ {[%clk 0:02:17]} 19. Rxd1 {[%clk 0:00:31]}  Ba3 {[%clk 0:02:08]} 20. Bxf6 {[%clk 0:00:20]}  Qxf6 {[%clk 0:02:08]} 21. Qxf6 {[%clk 0:00:20]}  gxf6 {[%clk 0:02:09]} 22. Nfd4 {[%clk 0:00:18]}  Bxg2 {[%clk 0:02:08]} 23. Kxg2 {[%clk 0:00:19]}  f5 {[%clk 0:02:05]} 24. Kf1 {[%clk 0:00:16]}  Kg7 {[%clk 0:02:00]} 25. h3 {[%clk 0:00:14]}  Kf6 {[%clk 0:01:59]} 26. Rd2 {[%clk 0:00:13]}  Nd5 {[%clk 0:01:57]} 27. Nf4 {[%clk 0:00:12]}  Rc1+ {[%clk 0:01:52]} 28. Ke2 {[%clk 0:00:11]}  Nc3+ {[%clk 0:01:51]} 29. Kf3 {[%clk 0:00:11]}  e5 {[%clk 0:01:51]} 30. Nh5+ {[%clk 0:00:11]}  Kg6 {[%clk 0:01:51]} 31. Nc6 {[%clk 0:00:06]}  Kxh5 {[%clk 0:01:44]} 32. Nxe5 {[%clk 0:00:06]}  Rd1 {[%clk 0:01:33]} 33. g4+ {[%clk 0:00:06]}  Kg5 {[%clk 0:01:32]} 34. Nxf7+ {[%clk 0:00:05]}  Kg6 {[%clk 0:01:32]} 35. Rxd1 {[%clk 0:00:05]}  Nxd1 {[%clk 0:01:32]} 36. Ne5+ {[%clk 0:00:05]}  Kf6 {[%clk 0:01:32]} 37. Nd7+ {[%clk 0:00:04]}  Kg5 {[%clk 0:01:32]} 38. Kg3 {[%clk 0:00:03]}  fxg4 {[%clk 0:01:31]} 39. hxg4 {[%clk 0:00:03]}  Nc3 {[%clk 0:01:27]} 40. Nb8 {[%clk 0:00:02]}  a5 {[%clk 0:01:25]} 41. Nc6 {[%clk 0:00:00]}  a4 {[%clk 0:01:20]} 0-1


[Site "https://www.chess.com"]

[Event "Titled Tuesday Blitz August 08 Early 2023"]
[White "Muradli, Mahammad"]
[Black "Feliz Dotel, Dewar Bienvenido"]
[WhiteFideId "13409301"]
[BlackFideId "6402801"]
[WhiteElo "2896"]
[BlackElo "2196"]
[Result "1-0"]
[Round "7"]
[TimeControl "180+1"]
[Date "2023.08.08"]
[WhiteClock "0:00:24"]
[BlackClock "0:00:00"]
[Board "69"]

1. e4 {[%clk 0:03:00]}  e5 {[%clk 0:02:59]} 2. Nf3 {[%clk 0:02:59]}  Nc6 {[%clk 0:02:59]} 3. Bb5 {[%clk 0:02:58]}  Nf6 {[%clk 0:02:59]} 4. d3 {[%clk 0:02:44]}  Ne7 {[%clk 0:02:58]} 5. O-O {[%clk 0:02:38]}  c6 {[%clk 0:02:58]} 6. Ba4 {[%clk 0:02:37]}  Ng6 {[%clk 0:02:58]} 7. d4 {[%clk 0:02:32]}  d6 {[%clk 0:02:58]} 8. Re1 {[%clk 0:02:26]}  Be7 {[%clk 0:02:57]} 9. c3 {[%clk 0:02:24]}  O-O {[%clk 0:02:57]} 10. Nbd2 {[%clk 0:02:22]}  a5 {[%clk 0:02:57]} 11. Bc2 {[%clk 0:02:20]}  b5 {[%clk 0:02:56]} 12. Nf1 {[%clk 0:02:21]}  a4 {[%clk 0:02:50]} 13. a3 {[%clk 0:02:21]}  Re8 {[%clk 0:02:32]} 14. Ng3 {[%clk 0:02:20]}  c5 {[%clk 0:02:26]} 15. h3 {[%clk 0:02:09]}  Qb6 {[%clk 0:02:13]} 16. Be3 {[%clk 0:02:02]}  Qb7 {[%clk 0:02:09]} 17. d5 {[%clk 0:01:44]}  Bd7 {[%clk 0:01:37]} 18. Qd2 {[%clk 0:01:35]}  Reb8 {[%clk 0:01:36]} 19. Rab1 {[%clk 0:01:30]}  b4 {[%clk 0:01:36]} 20. c4 {[%clk 0:01:30]}  bxa3 {[%clk 0:01:26]} 21. bxa3 {[%clk 0:01:31]}  Qc7 {[%clk 0:01:24]} 22. Ne2 {[%clk 0:01:28]}  Nh5 {[%clk 0:01:18]} 23. Nc3 {[%clk 0:01:26]}  Nhf4 {[%clk 0:01:13]} 24. Rxb8+ {[%clk 0:01:03]}  Rxb8 {[%clk 0:01:12]} 25. Bxa4 {[%clk 0:01:03]}  Bxa4 {[%clk 0:01:05]} 26. Nxa4 {[%clk 0:01:04]}  Ra8 {[%clk 0:00:50]} 27. Nc3 {[%clk 0:01:03]}  Rxa3 {[%clk 0:00:49]} 28. Nb5 {[%clk 0:01:03]}  Qa5 {[%clk 0:00:46]} 29. Nxa3 {[%clk 0:01:00]}  Qxa3 {[%clk 0:00:47]} 30. Rb1 {[%clk 0:00:58]}  h6 {[%clk 0:00:45]} 31. Kh2 {[%clk 0:00:51]}  Qa4 {[%clk 0:00:38]} 32. Qc3 {[%clk 0:00:45]}  Ne2 {[%clk 0:00:29]} 33. Qb3 {[%clk 0:00:39]}  Qa6 {[%clk 0:00:22]} 34. Qb5 {[%clk 0:00:33]}  Qa3 {[%clk 0:00:19]} 35. Qe8+ {[%clk 0:00:31]}  Bf8 {[%clk 0:00:18]} 36. Rb7 {[%clk 0:00:31]}  Nd4 {[%clk 0:00:07]} 37. Qxf7+ {[%clk 0:00:30]}  Kh7 {[%clk 0:00:07]} 38. Bxd4 {[%clk 0:00:25]}  exd4 {[%clk 0:00:00]} 39. h4 {[%clk 0:00:24]} 1-0


[Site "https://www.chess.com"]

[Event "Titled Tuesday Blitz August 08 Early 2023"]
[White "Narayanan, Srinath"]
[Black "NovoselovRoman"]
[WhiteFideId "5018420"]
[WhiteElo "2858"]
[BlackElo "2614"]
[Result "1-0"]
[Round "7"]
[TimeControl "180+1"]
[Date "2023.08.08"]
[WhiteClock "0:01:59"]
[BlackClock "0:00:00"]
[Board "70"]

1. Nf3 {[%clk 0:03:00]}  d5 {[%clk 0:02:59]} 2. e3 {[%clk 0:03:00]}  Nf6 {[%clk 0:02:59]} 3. c4 {[%clk 0:03:00]}  e6 {[%clk 0:02:59]} 4. Nc3 {[%clk 0:03:01]}  Be7 {[%clk 0:02:58]} 5. b3 {[%clk 0:03:02]}  c5 {[%clk 0:02:56]} 6. cxd5 {[%clk 0:03:00]}  exd5 {[%clk 0:02:56]} 7. Bb2 {[%clk 0:02:57]}  Nc6 {[%clk 0:02:55]} 8. d4 {[%clk 0:02:57]}  Bg4 {[%clk 0:02:45]} 9. dxc5 {[%clk 0:02:55]}  d4 {[%clk 0:02:40]} 10. exd4 {[%clk 0:02:54]}  Bxf3 {[%clk 0:02:40]} 11. Qxf3 {[%clk 0:02:45]}  Nxd4 {[%clk 0:02:41]} 12. Bb5+ {[%clk 0:02:46]}  Nxb5 {[%clk 0:01:41]} 13. Nxb5 {[%clk 0:02:47]}  Qa5+ {[%clk 0:01:42]} 14. Nc3 {[%clk 0:02:44]}  Qxc5 {[%clk 0:01:36]} 15. O-O {[%clk 0:02:38]}  O-O {[%clk 0:01:33]} 16. Qxb7 {[%clk 0:02:34]}  Rab8 {[%clk 0:01:17]} 17. Qf3 {[%clk 0:02:33]}  Rfd8 {[%clk 0:01:08]} 18. Rfe1 {[%clk 0:02:30]}  Rd2 {[%clk 0:00:57]} 19. Na4 {[%clk 0:02:25]}  Qc7 {[%clk 0:00:18]} 20. Be5 {[%clk 0:02:06]}  Bd6 {[%clk 0:00:11]} 21. Bxf6 {[%clk 0:02:07]}  gxf6 {[%clk 0:00:12]} 22. Qxf6 {[%clk 0:02:04]}  Bf8 {[%clk 0:00:08]} 23. Qg5+ {[%clk 0:02:03]}  Bg7 {[%clk 0:00:08]} 24. Qxd2 {[%clk 0:02:04]}  Bxa1 {[%clk 0:00:09]} 25. Rxa1 {[%clk 0:02:04]}  Rd8 {[%clk 0:00:10]} 26. Qg5+ {[%clk 0:02:03]}  Kf8 {[%clk 0:00:10]} 27. h3 {[%clk 0:02:02]}  Rd6 {[%clk 0:00:08]} 28. Re1 {[%clk 0:01:59]}  Qc2 {[%clk 0:00:03]} 29. Qe7+ {[%clk 0:01:58]}  Kg7 {[%clk 0:00:00]} 30. Qxd6 {[%clk 0:01:59]} 1-0


[Site "https://www.chess.com"]

[Event "Titled Tuesday Blitz August 08 Early 2023"]
[White "Komov, Roman"]
[Black "Molina, Roberto Junio Brito"]
[WhiteFideId "24175714"]
[BlackFideId "2109450"]
[WhiteElo "2613"]
[BlackElo "2842"]
[Result "1-0"]
[Round "7"]
[TimeControl "180+1"]
[Date "2023.08.08"]
[WhiteClock "0:00:04"]
[BlackClock "0:00:00"]
[Board "71"]

1. e4 {[%clk 0:03:00]}  c6 {[%clk 0:02:58]} 2. d4 {[%clk 0:03:00]}  d5 {[%clk 0:02:59]} 3. e5 {[%clk 0:03:00]}  Bf5 {[%clk 0:02:59]} 4. h4 {[%clk 0:03:00]}  Qb6 {[%clk 0:02:58]} 5. Nc3 {[%clk 0:02:42]}  h6 {[%clk 0:02:55]} 6. g4 {[%clk 0:02:40]}  Bd7 {[%clk 0:02:55]} 7. h5 {[%clk 0:02:40]}  e6 {[%clk 0:02:50]} 8. f4 {[%clk 0:02:22]}  c5 {[%clk 0:02:46]} 9. Nf3 {[%clk 0:02:22]}  cxd4 {[%clk 0:02:43]} 10. Nxd4 {[%clk 0:02:17]}  Nc6 {[%clk 0:02:40]} 11. Be3 {[%clk 0:02:02]}  Qxb2 {[%clk 0:02:30]} 12. Ncb5 {[%clk 0:01:59]}  Nxd4 {[%clk 0:02:05]} 13. Bxd4 {[%clk 0:01:39]}  Qb4+ {[%clk 0:02:02]} 14. c3 {[%clk 0:01:40]}  Qa5 {[%clk 0:02:01]} 15. Qb3 {[%clk 0:01:28]}  a6 {[%clk 0:01:51]} 16. Bb6 {[%clk 0:01:21]}  axb5 {[%clk 0:01:21]} 17. Bxa5 {[%clk 0:01:18]}  Rxa5 {[%clk 0:01:22]} 18. a4 {[%clk 0:01:13]}  Bc5 {[%clk 0:01:16]} 19. Bd3 {[%clk 0:01:05]}  Bc6 {[%clk 0:01:10]} 20. Ke2 {[%clk 0:00:49]}  bxa4 {[%clk 0:01:09]} 21. Qc2 {[%clk 0:00:49]}  Ne7 {[%clk 0:01:06]} 22. Rhb1 {[%clk 0:00:48]}  Kd7 {[%clk 0:01:01]} 23. Rb2 {[%clk 0:00:41]}  Rha8 {[%clk 0:00:59]} 24. Rab1 {[%clk 0:00:41]}  R8a7 {[%clk 0:00:59]} 25. g5 {[%clk 0:00:34]}  a3 {[%clk 0:00:57]} 26. Ra2 {[%clk 0:00:32]}  Ra4 {[%clk 0:00:51]} 27. Rf1 {[%clk 0:00:23]}  hxg5 {[%clk 0:00:31]} 28. fxg5 {[%clk 0:00:23]}  Rg4 {[%clk 0:00:32]} 29. Kd1 {[%clk 0:00:20]}  Rxg5 {[%clk 0:00:28]} 30. Rxf7 {[%clk 0:00:19]}  Rxh5 {[%clk 0:00:25]} 31. Kc1 {[%clk 0:00:18]}  Rxe5 {[%clk 0:00:25]} 32. Rf1 {[%clk 0:00:17]}  g5 {[%clk 0:00:24]} 33. Kb1 {[%clk 0:00:17]}  g4 {[%clk 0:00:24]} 34. Ka1 {[%clk 0:00:16]}  g3 {[%clk 0:00:24]} 35. Qd1 {[%clk 0:00:12]}  Rg5 {[%clk 0:00:17]} 36. Be4 {[%clk 0:00:07]}  Ra4 {[%clk 0:00:11]} 37. Bg2 {[%clk 0:00:07]}  Rh4 {[%clk 0:00:10]} 38. Rd2 {[%clk 0:00:03]}  Rh2 {[%clk 0:00:08]} 39. Re1 {[%clk 0:00:03]}  Bd6 {[%clk 0:00:06]} 40. c4 {[%clk 0:00:03]}  Re5 {[%clk 0:00:05]} 41. cxd5 {[%clk 0:00:03]}  exd5 {[%clk 0:00:05]} 42. Rxe5 {[%clk 0:00:02]}  Bxe5+ {[%clk 0:00:05]} 43. Ka2 {[%clk 0:00:02]}  Kd6 {[%clk 0:00:04]} 44. Qg4 {[%clk 0:00:02]}  Bd7 {[%clk 0:00:04]} 45. Qb4+ {[%clk 0:00:03]}  Ke6 {[%clk 0:00:04]} 46. Qxa3 {[%clk 0:00:03]}  Bc6 {[%clk 0:00:02]} 47. Qb3 {[%clk 0:00:04]}  Rh4 {[%clk 0:00:02]} 48. Qf3 {[%clk 0:00:04]}  Rf4 {[%clk 0:00:00]} 49. Qe3 {[%clk 0:00:04]} 1-0


[Site "https://www.chess.com"]

[Event "Titled Tuesday Blitz August 08 Early 2023"]
[White "Borgaonkar Akshay"]
[Black "Mikhailovsky, Vladimir"]
[WhiteFideId "25639110"]
[BlackFideId "34105414"]
[WhiteElo "2585"]
[BlackElo "2798"]
[Result "0-1"]
[Round "7"]
[TimeControl "180+1"]
[Date "2023.08.08"]
[WhiteClock "0:01:34"]
[BlackClock "0:01:52"]
[Board "74"]

1. e4 {[%clk 0:02:58]}  e5 {[%clk 0:02:59]} 2. Nf3 {[%clk 0:02:58]}  d5 {[%clk 0:03:00]} 3. exd5 {[%clk 0:02:55]}  e4 {[%clk 0:03:01]} 4. Qe2 {[%clk 0:02:54]}  Nf6 {[%clk 0:02:58]} 5. Nc3 {[%clk 0:02:53]}  Be7 {[%clk 0:02:59]} 6. Nxe4 {[%clk 0:02:50]}  O-O {[%clk 0:02:59]} 7. d3 {[%clk 0:02:45]}  Nxd5 {[%clk 0:02:54]} 8. Bd2 {[%clk 0:02:40]}  Re8 {[%clk 0:02:54]} 9. O-O-O {[%clk 0:02:39]}  f5 {[%clk 0:02:54]} 10. Nc3 {[%clk 0:02:31]}  Nxc3 {[%clk 0:02:51]} 11. Bxc3 {[%clk 0:02:10]}  Bg5+ {[%clk 0:02:51]} 12. Nxg5 {[%clk 0:01:59]}  Rxe2 {[%clk 0:02:52]} 13. Bxe2 {[%clk 0:02:00]}  Qxg5+ {[%clk 0:02:51]} 14. Kb1 {[%clk 0:02:01]}  Nc6 {[%clk 0:02:43]} 15. Bf3 {[%clk 0:02:00]}  Be6 {[%clk 0:02:37]} 16. Rhe1 {[%clk 0:02:00]}  Bf7 {[%clk 0:02:37]} 17. d4 {[%clk 0:01:57]}  Rd8 {[%clk 0:02:32]} 18. d5 {[%clk 0:01:56]}  Ne7 {[%clk 0:02:23]} 19. Re5 {[%clk 0:01:54]}  Ng6 {[%clk 0:02:16]} 20. Re3 {[%clk 0:01:49]}  Nh4 {[%clk 0:02:12]} 21. Be5 {[%clk 0:01:47]}  f4 {[%clk 0:02:06]} 22. Re4 {[%clk 0:01:42]}  Nxf3 {[%clk 0:02:07]} 23. gxf3 {[%clk 0:01:43]}  Rxd5 {[%clk 0:02:05]} 24. Rde1 {[%clk 0:01:40]}  Bg6 {[%clk 0:02:00]} 25. Bxf4 {[%clk 0:01:34]}  Qd8 {[%clk 0:01:52]} 0-1


[Site "https://www.chess.com"]

[Event "Titled Tuesday Blitz August 08 Early 2023"]
[White "Lysyj, Igor"]
[Black "Shvedova, Alexandra"]
[WhiteFideId "4150120"]
[BlackFideId "54154782"]
[WhiteElo "2764"]
[BlackElo "2566"]
[Result "1-0"]
[Round "7"]
[TimeControl "180+1"]
[Date "2023.08.08"]
[WhiteClock "0:01:03"]
[BlackClock "0:00:19"]
[Board "76"]

1. d4 {[%clk 0:02:59]}  Nf6 {[%clk 0:03:00]} 2. c4 {[%clk 0:02:59]}  e6 {[%clk 0:03:00]} 3. Nf3 {[%clk 0:02:59]}  d5 {[%clk 0:03:00]} 4. g3 {[%clk 0:02:58]}  Bb4+ {[%clk 0:02:59]} 5. Bd2 {[%clk 0:02:58]}  a5 {[%clk 0:03:00]} 6. Bg2 {[%clk 0:02:54]}  O-O {[%clk 0:03:00]} 7. a3 {[%clk 0:02:50]}  Be7 {[%clk 0:02:59]} 8. O-O {[%clk 0:02:49]}  c6 {[%clk 0:03:00]} 9. Qc2 {[%clk 0:02:49]}  Nbd7 {[%clk 0:03:00]} 10. Bf4 {[%clk 0:02:48]}  b6 {[%clk 0:02:50]} 11. cxd5 {[%clk 0:02:48]}  cxd5 {[%clk 0:02:50]} 12. Nc3 {[%clk 0:02:47]}  Ba6 {[%clk 0:02:49]} 13. Rfc1 {[%clk 0:02:47]}  Rc8 {[%clk 0:02:44]} 14. Qb3 {[%clk 0:02:45]}  Bc4 {[%clk 0:02:16]} 15. Qd1 {[%clk 0:02:45]}  Ba6 {[%clk 0:02:16]} 16. a4 {[%clk 0:02:41]}  Nb8 {[%clk 0:02:10]} 17. Nb5 {[%clk 0:02:35]}  Nc6 {[%clk 0:01:59]} 18. Qb3 {[%clk 0:02:28]}  Ne4 {[%clk 0:01:56]} 19. Rc2 {[%clk 0:02:10]}  Qd7 {[%clk 0:00:52]} 20. Rac1 {[%clk 0:02:06]}  Rfd8 {[%clk 0:00:48]} 21. h4 {[%clk 0:01:21]}  f6 {[%clk 0:00:47]} 22. Bh3 {[%clk 0:01:18]}  Kf7 {[%clk 0:00:36]} 23. Nc7 {[%clk 0:01:14]}  Bc4 {[%clk 0:00:29]} 24. Rxc4 {[%clk 0:01:11]}  dxc4 {[%clk 0:00:29]} 25. Qxc4 {[%clk 0:01:11]}  Rxc7 {[%clk 0:00:28]} 26. Bxc7 {[%clk 0:01:10]}  Qxc7 {[%clk 0:00:28]} 27. Qxe6+ {[%clk 0:01:09]}  Kf8 {[%clk 0:00:29]} 28. Rxc6 {[%clk 0:01:05]}  Qb7 {[%clk 0:00:24]} 29. Qxe4 {[%clk 0:01:04]}  Rd6 {[%clk 0:00:19]} 30. Rc8+ {[%clk 0:01:03]} 1-0


[Site "https://www.chess.com"]